Cogmind - Beta 15 @@@ ROGUE MODE // 2025.07.20 @ 22:53:15 Player: Windjigo Result: Destroyed by 99-TNT with 99-TNT's Nukerbomber Performance ------------- Evolutions (3) 1500 Regions Visited (8) 1600 Robots Destroyed (160) 800 Value Destroyed (5449) 5449 Prototype IDs (23) 460 Alien Tech Used (0) 0 Bonus (763) 763 TOTAL SCORE: 10572 Bonus ------- High Alert Combat Kills 495 Follower Combat Kills 293 Friendly Fire -25 Cogmind --------- Core Integrity 0/700 Matter 279/300 Energy 100/100 System Corruption 15% Temperature Cool (0) Movement Core (350) Ox6 Location -7/Zion Parts ------- > --- POWER (1) -------- (None) > --- PROPULSION (3) --- (None) > --- UTILITY (6) ------ Large Storage Unit Improved Signal Interpreter Improved Melee Analysis Suite Core Analyzer > --- WEAPON (3) ------- (None) > --- INVENTORY (15) --- Improved Deuterium Engine Medium Treads Airjet Gravmag System Gravmag System Coolant Injector Small Storage Unit Improved Particle Charger Microactuators Thermic Laser Cooled Particle Cannon Bore Cannon Rocket Array Datajack Improved Datajack Peak State ------------ > --- POWER ------------ Reinforced Deuterium Engine > --- PROPULSION ------- Medium Treads Medium Treads Improved Medium Treads > --- UTILITY ---------- Large Storage Unit Improved Signal Interpreter Improved Melee Analysis Suite Core Analyzer Force Booster Medium Reflective Plating > --- WEAPON ----------- Rocket Array Great Maul Shock Maul > --- INVENTORY -------- Improved Deuterium Engine Airjet Gravmag System Gravmag System Coolant Injector Small Storage Unit Microactuators Advanced Beam Rifle Improved Spread Laser Heavy Particle Cannon Cooled Particle Cannon Magnetic Acceleration Cannon Rocket Array Datajack Improved Datajack [Rating: 56] Favorites ----------- Power Reinforced Deuterium Engine Engine Reinforced Deuterium Engine Power Core Light Nuclear Core Propulsion Medium Treads Treads Medium Treads Leg Arachnoskeleton Wheel Compact Wheel Hover Unit Aerolev Unit Utility Large Storage Unit Device Force Booster Storage Large Storage Unit Processor Improved Signal Interpreter Protection Medium Reflective Plating Weapon Shock Maul Energy Gun Makeshift Laser Energy Cannon Advanced Beam Cannon Ballistic Gun Heavy Assault Rifle Ballistic Cannon Gauss Cannon Launcher Rocket Array Special Weapon Mining Laser Impact Weapon Shock Maul Slashing Weapon Ripper Build | -11 -10 -10 -8 -8 -7 -7 -7 -7 ------- Run | Yrd Mat Sub Mat Sto Fac Low Low Zio Slots Evolved 6 | . . . 4 . 2 . . . Power . | . . . . . . . . . Propulsion 1 | . . . 1 . . . . . Utility 4 | . . . 2 . 2 . . . Weapon 1 | . . . 1 . . . . . Parts Attached 114 | 7 4 10 36 26 20 4 3 4 Power 11 | 1 1 2 4 1 1 1 . . Engine 7 | 1 1 2 . 1 1 1 . . Core 4 | . . . 4 . . . . . Reactor . | . . . . . . . . . Propulsion 26 | 2 . 2 9 5 5 1 2 . Treads 20 | . . 2 6 4 5 1 2 . Leg 3 | . . . 3 . . . . . Wheel 2 | 2 . . . . . . . . Hover 1 | . . . . 1 . . . . Flight . | . . . . . . . . . Utility 30 | 2 1 2 11 5 8 1 . . Device 9 | 1 . 1 5 1 1 . . . Storage 3 | 1 . . 2 . . . . . Processor 5 | . . . 1 . 4 . . . Hackware . | . . . . . . . . . Protection 13 | . 1 1 3 4 3 1 . . Artifact . | . . . . . . . . . Weapon 47 | 2 2 4 12 15 6 1 1 4 Energy Gun 15 | . 1 1 5 4 2 . . 2 Energy Cannon 6 | . . . 3 2 1 . . . Ballistic Gun 13 | 2 1 2 3 5 . . . . Ballistic Cannon 3 | . . . . 2 1 . . . Launcher 5 | . . . 1 1 2 . 1 . Special Weapon 2 | . . 1 . . . . . 1 Impact Weapon 2 | . . . . 1 . 1 . . Slashing Weapon 1 | . . . . . . . . 1 Piercing Weapon . | . . . . . . . . . Special Melee Weapon . | . . . . . . . . . Unidentified Prototypes 12 | . . 1 3 5 3 . . . Corrupted Parts 2 | . . . . . . 2 . . System Corruption 14 | . . . . . . 14 . . Parts Lost 25 | . . 2 1 9 3 . 1 9 Power 2 | . . 1 . . . . . 1 Propulsion 8 | . . 1 . 3 1 . . 3 Utility 8 | . . . . 4 2 . . 2 Weapon 7 | . . . 1 2 . . 1 3 Highest Loss Streak 8 | . . 1 1 2 1 . 1 8 To Critical Strikes 1 | . . . . 1 . . . . Average Backups 12 | 1 5 6 10 14 14 15 14 15 Power . | . 1 . . . . 1 1 1 Propulsion 2 | . . . 1 . 1 3 3 4 Utility 4 | . 1 2 4 6 4 3 4 4 Weapon 4 | 1 2 2 2 5 5 5 4 4 Tool/Special . | . . . . . . . . . Unused Backups 29 | . . 3 3 4 6 . 1 12 Power 4 | . . 2 . 1 . . . 1 Propulsion 7 | . . . 1 1 1 . 1 3 Utility 6 | . . 1 . . 2 . . 3 Weapon 10 | . . . 2 2 3 . . 3 Tool/Special 2 | . . . . . . . . 2 Average Slot Usage (%) 92 | . 100 98 87 83 93 96 99 93 Engine 6 | . 14 13 1 5 7 7 7 7 Core 1 | . . . 6 2 . . . . Treads 18 | . . 13 16 15 22 23 22 21 Leg 1 | . . . 4 6 . . . . Wheel 2 | . 28 12 . . . . . . Device 7 | . 14 4 12 5 6 7 7 6 Storage 8 | . 14 14 8 8 7 7 7 7 Processor 13 | . . . 5 8 17 23 23 23 Protection 6 | . . 9 7 5 7 6 7 2 Energy Gun 4 | . . 14 4 7 . . . 6 Energy Cannon 2 | . . . 7 3 3 . . . Ballistic Gun 5 | . 27 14 12 6 . . . . Ballistic Cannon 1 | . . . . 3 6 . . . Launcher 3 | . . . . . 6 7 6 . Impact Weapon 5 | . . . . 2 3 11 15 11 Peak Build Rating 56 | 7 9 19 53 53 52 56 56 56 Average Rating 40 | 4 7 15 36 39 43 53 55 53 On Entrance 31 | . 7 9 18 53 34 48 56 56 Naked Turns . | . . . . . . . . . Heaviest Build 65 | 13 15 18 44 55 65 61 61 61 Greatest Support 86 | 32 32 40 80 80 76 86 86 86 Greatest Overweight (x) 3 | 3 . 1 . 2 1 . 1 . Average Overweight (x) . | . . . . . . . . . Largest Inventory Capacity 15 | 8 8 8 15 15 15 15 15 15 Average Capacity 13 | 7 8 8 14 15 15 15 15 15 Most Carried 15 | 4 8 8 15 15 15 15 15 15 Average Carried 13 | 2 5 7 13 14 14 14 14 15 Final Capacity 15 | 8 8 8 15 15 15 15 15 15 Final Carried 15 | 3 8 8 15 15 15 15 15 15 Class Distribution -------------------- 27% | Mutant 15% | Scavenger-Gladiator 10% | Gladiator 8% | Gunner 8% | Skirmisher 8% | Tank 6% | Derelict-Mutant 5% | Scavenger-Tank Dominant Class ---------------- Mutant | -10/Materials Derelict-Mutant | -10/Subcaves Tank | -8/Materials Mutant | -8/Storage Gunner | -7/Factory Gladiator | -7/Lower Caves Scavenger-Gladiator | -7/Lower Caves Scavenger-Gladiator | -7/Zion Resources | -11 -10 -10 -8 -8 -7 -7 -7 -7 ----------- Run | Yrd Mat Sub Mat Sto Fac Low Low Zio Matter Collected 3534 | 287 51 233 811 910 685 189 318 50 Remotely . | . . . . . . . . . Salvage Created 6403 | 52 93 425 1279 2031 1531 504 438 50 Parts 285 | 9 9 20 53 82 94 5 13 . Haulers Intercepted 13 | . . . 5 5 3 . . . Recyclers Shooed . | . . . . . . . . . Parts Field Recycled . | . . . . . . . . . Retrieved Matter . | . . . . . . . . . Parts Self-Destructed 32 | . . 16 . . . 2 14 . Prevented 2 | . . . . . . 2 . . Kills | -11 -10 -10 -8 -8 -7 -7 -7 -7 ------- Run | Yrd Mat Sub Mat Sto Fac Low Low Zio Combat Hostiles Destroyed 113 | . 2 10 22 34 30 2 12 1 Melee 7 | . . . . . 1 1 5 . Guns 46 | . 2 10 14 19 1 . . . Cannons 27 | . . . 6 10 11 . . . AOE 24 | . . . 2 3 16 . 3 . Classes Destroyed 19 | 1 1 3 5 3 3 2 1 . Worker 7 | . . . . 1 6 . . . Builder 8 | . . . . 1 7 . . . Tunneler 4 | 3 . . . . 1 . . . Hauler 13 | . . . 5 5 3 . . . Recycler 5 | . . . 1 . 4 . . . Operator 7 | . . . 3 2 2 . . . Watcher 3 | . . . 1 . 2 . . . Swarmer 17 | . . 1 5 3 8 . . . Grunt 50 | . 2 3 11 16 9 . 9 . Brawler 3 | . . . 1 . 2 . . . Duelist 4 | . . . . . 2 . 2 . Protector 1 | . . . . . 1 . . . Sentry 21 | . . 1 5 12 3 . . . Hunter 5 | . . . . 3 1 1 . . Programmer 4 | . . . . . 4 . . . Behemoth 1 | . . . . . . 1 . . Subdweller 5 | . . 5 . . . . . . Packrat 1 | . . . . . . 1 . . Samaritan 1 | . . . . . . 1 . . Thief 1 | . . . . . . . 1 . Thug 1 | . . . . . . . . 1 Best Kill Streak 9 | 3 2 3 6 9 9 1 4 1 Combat Bots Only 8 | . 2 3 6 7 8 1 4 1 Max Kills in Single Turn 4 | 1 1 1 3 4 4 1 3 1 Gunslinging . | . . . . . . . . . Exploded 3 | . . . 2 2 3 . 3 . Melee 2 | . . . . . 1 1 2 . Uniques/NPCs Destroyed . | . . . . . . . . . Combat | -11 -10 -10 -8 -8 -7 -7 -7 -7 -------- Run | Yrd Mat Sub Mat Sto Fac Low Low Zio Hostile Shots Fired 582 | . 21 43 108 206 97 34 47 26 Missed 166 | . 5 11 27 47 41 12 22 1 Hits 416 | . 16 32 81 159 56 22 25 25 Melee 4 | . . . 1 . 1 . 2 . Projectile 412 | . 16 32 80 159 55 22 23 25 AOE 17 | . . . . 1 . . . 16 Critical Strikes 22 | . 1 . 5 11 2 . 2 1 Damage Taken 8130 | . 232 655 1201 2588 1037 559 518 1340 Core 1474 | . 65 140 114 428 120 27 71 509 Absorbed by Shields . | . . . . . . . . . Ignored by Resistances 134 | . . . 8 44 . . 64 18 Regen/Repaired (Parts) 65 | . . . . 47 18 . . . Core Remaining (%) 39 | 100 . 18 . 1 . . . . Volleys Fired 316 | 9 15 33 83 113 61 . 2 . Largest 3 | 2 2 2 3 3 3 . 1 . Hottest 250 | 40 40 250 155 167 140 . 45 . Shots Fired 723 | 18 30 60 208 297 103 . 5 2 Gun 484 | 18 30 59 147 223 6 . . 1 Cannon 205 | . . . 59 67 79 . . . Launcher 33 | . . . 2 7 18 . 5 1 Special 1 | . . 1 . . . . . . Kinetic 345 | 18 30 26 107 127 37 . . . Thermal 345 | . . 34 99 163 48 . . 1 Explosive 24 | . . . 2 1 15 . 5 1 Electromagnetic 9 | . . . . 6 3 . . . Robot Hit Streak 14 | 9 5 14 12 14 9 . 1 1 Robot Miss Streak 6 | 1 2 2 6 6 4 . 3 . Penetration Max . | . . . . . . . . . Secondary Targets 3 | . . 2 1 . . . . . Max Gunslinging Chain 1 | . . 1 1 . . . . . Shots Hit Robots 487 | 15 22 42 124 187 59 17 15 6 Core Hits 283 | 7 7 16 58 70 107 3 15 . Critical Kills 4 | . . . . 1 . 1 2 . Critical Parts Destroyed 17 | . . . 1 4 1 4 6 1 Critical Strikes 34 | . . 4 2 6 5 7 8 2 Burn 8 | . . 4 1 1 1 . . 1 Meltdown 1 | . . . . 1 . . . . Destroy 4 | . . . 1 3 . . . . Blast 3 | . . . . . 3 . . . Smash 18 | . . . . 1 1 7 8 1 Melee Attacks 65 | . . . . 13 4 19 23 6 Impact 65 | . . . . 13 4 19 23 6 Slashing . | . . . . . . . . . Piercing . | . . . . . . . . . Sneak Attacks 4 | . . . . 1 1 2 . . Combat Hostiles . | . . . . . . . . . Follow-up Attacks 3 | . . . . . . 1 2 . Damage Inflicted 15428 | 114 175 718 2604 4106 4727 1437 1272 275 Guns 5139 | 114 175 718 1641 2381 92 . . 18 Cannons 3281 | . . . 801 1160 1320 . . . Explosions 4132 | . . . 162 406 3087 . 477 . Melee 2876 | . . . . 159 228 1437 795 257 Ramming . | . . . . . . . . . Kinetic 3640 | 114 175 299 1229 1178 645 . . . Thermal 5284 | . . 419 1213 2372 1262 . . 18 Explosive 2947 | . . . 162 89 2219 . 477 . Electromagnetic 681 | . . . . 308 373 . . . Impact 2876 | . . . . 159 228 1437 795 257 Slashing . | . . . . . . . . . Piercing . | . . . . . . . . . Highest Corruption 15 | . . . . 1 1 15 15 15 Average Corruption 5 | . . . . 1 1 2 15 15 Corruption Purged . | . . . . . . . . . Corruption Blocked . | . . . . . . . . . Effects 133 | . . . . 18 12 22 71 10 Message Errors 35 | . . . . 5 3 7 18 2 Matter Fused 37 | . . . . 5 4 5 21 2 Heat Flow Errors 13 | . . . . 4 . 4 5 . Energy Discharges 15 | . . . . 1 1 3 10 . Parts Rejected 1 | . . . . . 1 . . . Parts Fused 1 | . . . . . . . . 1 Data Loss (minor) 12 | . . . . 2 . 2 7 1 Data Loss (major) 6 | . . . . 1 . . 4 1 Misfires 8 | . . . . . 2 . 4 2 Alerts 3 | . . . . . . 1 1 1 Weapon Failures 2 | . . . . . 1 . 1 . Overload Shots 6 | . . 6 . . . . . . Effects 3 | . . 3 . . . . . . Heat Surge 2 | . . 2 . . . . . . Short Circuit 1 | . . 1 . . . . . . Overflow Damage 1520 | . . . . 132 453 526 324 85 Projectiles 65 | . . . . 9 56 . . . Explosions 303 | . . . . 34 269 . . . Melee 1152 | . . . . 89 128 526 324 85 Knockbacks 12 | . . . . . 5 2 5 . Impact 8 | . . . . . 1 2 5 . Kinetic 4 | . . . . . 4 . . . Secondary . | . . . . . . . . . Self-Inflicted Damage 564 | . . . 20 67 272 . 182 23 Shots 23 | . . . 1 4 9 . 8 1 Rammed . | . . . . . . . . . Targets Rammed . | . . . . . . . . . Kicked . | . . . . . . . . . Crushed . | . . . . . . . . . Highest Temperature 556 | . 27 226 365 556 207 226 238 55 Average Temperature 104 | . 13 54 97 138 40 89 89 28 Received Heat Transfer 2583 | . 156 183 684 1035 123 60 243 99 Effects 21 | . . . 4 17 . . . . Shutdowns 2 | . . . . 2 . . . . Energy Bleed 2 | . . . . 2 . . . . Interference 10 | . . . 3 7 . . . . Matter Decay 1 | . . . . 1 . . . . Short Circuit 2 | . . . 1 1 . . . . Damage (major) 3 | . . . . 3 . . . . Damage (core) 1 | . . . . 1 . . . . Siege Activations . | . . . . . . . . . Martial Activations . | . . . . . . . . . Shielding Activations . | . . . . . . . . . Robots Disrupted . | . . . . . . . . . Combat Hostiles . | . . . . . . . . . Robots Corrupted 11 | . . . . 1 2 3 4 1 Combat Hostiles 10 | . . . . 1 1 3 4 1 Parts Fried 13 | . . . . 2 3 2 5 1 Impact Corruptions 40 | . . . . 4 5 19 8 4 Robots Melted 1 | . . . . 1 . . . . Combat Hostiles 1 | . . . . 1 . . . . Parts Melted 19 | . . 2 5 12 . . . . Heat Transferred 9466 | . . 1173 2220 4194 1729 . . 150 Parts Sabotaged . | . . . . . . . . . Parts Stolen 1 | . . . . . . . 1 . Parts Stripped . | . . . . . . . . . Power Chain Reactions 9 | . . . . 3 6 . . . Alert | -11 -10 -10 -8 -8 -7 -7 -7 -7 ------- Run | Yrd Mat Sub Mat Sto Fac Low Low Zio Maximum Alert Level 3 | . . . 1 2 3 . . . Low Security (%) 53 | 100 100 . 93 46 16 . . . Level 1 13 | . . . 6 7 26 . . . Level 2 21 | . . . . 46 18 . . . Level 3 12 | . . . . . 38 . . . Level 4 . | . . . . . . . . . Level 5 . | . . . . . . . . . High Security . | . . . . . . . . . Max Security . | . . . . . . . . . Peak Influence 1094 | 10 40 . 292 633 1094 . . . Initial 260 | . . . . 30 260 . . . Average 293 | . 8 . 58 311 548 . . . Influence Increases 4389 | 15 55 140 857 1425 1462 65 370 . Destroy 0b10 Robot/C 2300 | . 40 100 460 860 580 40 220 . Destroy 0b10 Robot/NC 250 | 15 . . 50 50 130 5 . . Destroy Leader 614 | . 10 10 122 272 150 20 30 . Allied During Kill 105 | . . . 1 104 . . . . Successful Hack 109 | . 5 . 21 13 70 . . . Select Force Hacks 60 | . . . 60 . . . . . Disable Machine 420 | . . . 75 30 315 . . . Destroy Structure 216 | . . . 23 36 157 . . . Lose Combat Pursuer 315 | . . 30 45 60 60 . 120 . Influence Decreases 4389 | 15 35 160 784 925 955 992 500 23 Entered New Map 819 | . . 10 . 43 313 400 30 23 Time Decay 2931 | 15 35 140 465 612 612 592 460 . Lost Part 130 | . . 10 10 70 30 . 10 . Lost Ally 220 | . . . 20 200 . . . . Purge Threat 289 | . . . 289 . . . . . Squads Dispatched 30 | . . . 4 15 11 . . . Investigation 5 | . . . 2 3 . . . . Extermination 4 | . . . . . 4 . . . Reinforcement 8 | . . . 2 4 2 . . . Assault 3 | . . . . 1 2 . . . Garrison 10 | . . . . 7 3 . . . Intercept . | . . . . . . . . . Searches Triggered . | . . . . . . . . . Construction Impeded 2 | . . . . 1 1 . . . Haulers Reinforced . | . . . . . . . . . Active Scanning Responses . | . . . . . . . . . Cargo Convoy Interrupts . | . . . . . . . . . Stealth | -11 -10 -10 -8 -8 -7 -7 -7 -7 --------- Run | Yrd Mat Sub Mat Sto Fac Low Low Zio Distress Signals 9 | . . . 3 4 2 . . . Communications Jammed . | . . . . . . . . . Distress Signals . | . . . . . . . . . Times Spotted 183 | . 2 12 44 57 46 2 18 2 Peak Tracking Total 7 | . 2 3 6 6 7 1 4 1 Tactical Retreats 16 | . . 1 2 4 4 . 5 . Traps | -11 -10 -10 -8 -8 -7 -7 -7 -7 ------- Run | Yrd Mat Sub Mat Sto Fac Low Low Zio Traps Triggered 12 | . . . . 1 11 . . . Indirectly 11 | . . . . . 11 . . . Trap Hack Attempts . | . . . . . . . . . Triggered . | . . . . . . . . . Disarmed . | . . . . . . . . . Reprogrammed . | . . . . . . . . . Reused . | . . . . . . . . . Traps Extracted . | . . . . . . . . . Installed . | . . . . . . . . . Triggered . | . . . . . . . . . Objects Rigged 4 | . . . . . 4 . . . Exploded 1 | . . . . . 1 . . . Machines | -11 -10 -10 -8 -8 -7 -7 -7 -7 ---------- Run | Yrd Mat Sub Mat Sto Fac Low Low Zio Machines Disabled 29 | . . 1 5 2 21 . . . Max in Single Turn 11 | . . 1 1 1 11 . . . Garrison Access 1 | . . . . . 1 . . . Machines Repaired . | . . . . . . . . . Machines Dismantled . | . . . . . . . . . Machines Sabotaged . | . . . . . . . . . Overloaded Fab Kills . | . . . . . . . . . Hacking | -11 -10 -10 -8 -8 -7 -7 -7 -7 --------- Run | Yrd Mat Sub Mat Sto Fac Low Low Zio Machines Accessed 24 | . 1 1 7 7 6 2 . . Terminals 14 | . 1 . 5 5 2 1 . . Fabricators . | . . . . . . . . . Repair Stations 3 | . . . . 2 1 . . . Recycling Units 3 | . . . 2 . 1 . . . Scanalyzers . | . . . . . . . . . Garrison Access 2 | . . . . . 2 . . . Total Hacks 71 | . 4 9 26 17 13 2 . . Successful 43 | . 1 9 17 7 7 2 . . Failed 28 | . 3 . 9 10 6 . . . Catastrophic 3 | . . . 1 1 1 . . . Database Lockouts . | . . . . . . . . . Manual 23 | . 2 . 14 4 3 . . . Terminals 39 | . 4 . 21 9 4 1 . . Fabricators . | . . . . . . . . . Repair Stations 12 | . . . . 8 4 . . . Recycling Units 7 | . . . 5 . 2 . . . Scanalyzers . | . . . . . . . . . Garrison Access 3 | . . . . . 3 . . . Terminal Hacks 24 | . . 9 9 3 1 2 . . Record 9 | . . 8 . . . 1 . . Robot Analysis 3 | . . . 2 . 1 . . . Open Door 4 | . . . . 3 . 1 . . Branch Access Points 1 | . . . 1 . . . . . Unreport Threat 3 | . . . 3 . . . . . Zone Layout 3 | . . . 3 . . . . . Proto ID Catalog 1 | . . 1 . . . . . . Fabricator Hacks . | . . . . . . . . . Repair Station Hacks 7 | . . . . 4 3 . . . Scan Component 5 | . . . . 3 2 . . . Repair 2 | . . . . 1 1 . . . Recycling Unit Hacks 2 | . . . 1 . 1 . . . Retrieve Components 2 | . . . 1 . 1 . . . Scanalyzer . | . . . . . . . . . Garrison Access Hacks 1 | . . . . . 1 . . . Seal Access 1 | . . . . . 1 . . . Unauthorized Hacks 9 | . 1 . 7 . 1 . . . Terminals 7 | . 1 . 5 . 1 . . . Botnet 6 | . 1 . 5 . . . . . Detonate 1 | . . . . . 1 . . . Fabricators . | . . . . . . . . . Repair Stations . | . . . . . . . . . Recycling Units 2 | . . . 2 . . . . . Tunnel 2 | . . . 2 . . . . . Scanalyzers . | . . . . . . . . . Garrison Access . | . . . . . . . . . Data Cores Recovered 2 | . . . 1 . 1 . . . Used 1 | . . . 1 . . . . . Hacking Detections 18 | . 1 . 6 6 5 . . . Full Trace Events 1 | . . . . 1 . . . . Feedback Events 1 | . . . . 1 . . . . Corruption 1 | . . . . 1 . . . . Feedback Blocked . | . . . . . . . . . Robot Schematics Acquired . | . . . . . . . . . Robots Built . | . . . . . . . . . Authchips . | . . . . . . . . . Time . | . . . . . . . . . Total Robot Build Rating . | . . . . . . . . . Part Schematics Acquired . | . . . . . . . . . Parts Built . | . . . . . . . . . Authchips . | . . . . . . . . . Time . | . . . . . . . . . Total Part Build Rating . | . . . . . . . . . Parts Repaired 2 | . . . . 1 1 . . . Time 79 | . . . . 53 26 . . . Parts Recycled . | . . . . . . . . . Recycled Matter . | . . . . . . . . . Retrieved Matter . | . . . . . . . . . Retrieved Components 10 | . . . 10 . . . . . Parts Scanalyzed . | . . . . . . . . . Part Schematics Acquired . | . . . . . . . . . Parts Damaged . | . . . . . . . . . Bothacking | -11 -10 -10 -8 -8 -7 -7 -7 -7 ------------ Run | Yrd Mat Sub Mat Sto Fac Low Low Zio Used RIF Installer . | . . . . . . . . . Robots Hacked . | . . . . . . . . . Non-combat . | . . . . . . . . . Combat . | . . . . . . . . . Robot Hacks Applied . | . . . . . . . . . Relay Couplers Released . | . . . . . . . . . Fabnet Peak Effective % . | . . . . . . . . . Robots Rewired . | . . . . . . . . . Allies Hacked . | . . . . . . . . . Hacks Repelled . | . . . . . . . . . Allies | -11 -10 -10 -8 -8 -7 -7 -7 -7 -------- Run | Yrd Mat Sub Mat Sto Fac Low Low Zio Total Allies 11 | . . 1 . 10 . . . . Largest Group 10 | . . 1 1 10 . . . . Highest-Rated Group 173 | . . 19 19 173 . . . . Highest-Rated Ally 29 | . . 19 19 29 . . . . Total Orders . | . . . . . . . . . Ally Attacks 78 | . . . 2 76 . . . . Total Damage 946 | . . . 18 928 . . . . Kills 11 | . . . 1 10 . . . . Allies Corrupted 1 | . . . . 1 . . . . Allies Melted . | . . . . . . . . . Intel | -11 -10 -10 -8 -8 -7 -7 -7 -7 ------- Run | Yrd Mat Sub Mat Sto Fac Low Low Zio Active Infowar (turns) 4329 | 10 191 455 1201 605 1867 . . . Sensors 3049 | . . . 577 605 1867 . . . Seismic 1280 | 10 191 455 624 . . . . . Robot Analysis Total 3 | . . . 2 . 1 . . . Derelict Logs Recovered 4 | . . . . . . 3 1 . Drone Launches . | . . . . . . . . . Drone Recoveries . | . . . . . . . . . Exploration | -11 -10 -10 -8 -8 -7 -7 -7 -7 ------------- Run | Yrd Mat Sub Mat Sto Fac Low Low Zio Turns Passed 11639 | 91 192 1451 1976 2072 2005 1867 1804 181 Spaces Moved 6482 | 42 74 1025 1046 962 1089 1124 1025 95 Core 16 | 16 . . . . . . . . Treads 4742 | . . 337 540 532 1089 1124 1025 95 Legs 936 | . . . 506 430 . . . . Wheels 788 | 26 74 688 . . . . . . Hover . | . . . . . . . . . Flight . | . . . . . . . . . Fastest Speed 50 | 50 100 100 90 90 155 160 160 160 Average Speed 144 | 122 100 123 131 133 158 160 160 160 Slowest Speed 320 | 200 100 160 170 320 240 160 240 160 Overloaded Moves . | . . . . . . . . . Propulsion Burnouts . | . . . . . . . . . Robots Hopped . | . . . . . . . . . Potential Cave-ins . | . . . . . . . . . Cave-ins Triggered . | . . . . . . . . . Exploration Rate (%) 51 | 4 10 50 64 94 34 98 97 9 Regions Visited 8 Branch Regions 5 Pre-discovered Areas 3 | . . 1 2 . . . . . Known Exits Taken 5 | . . . 1 1 1 1 1 . Unknown Exits Taken 3 | 1 1 1 . . . . . . Scrap Searched 8 | . . 3 . . . 3 2 . Spaces Dug 2 | . . . . 1 . 1 . . Terrain Destroyed 391 | . . . 15 30 162 1 133 50 Melee 2 | . . . . 1 . 1 . . Projectile 28 | . . . 8 8 12 . . . AOE 361 | . . . 7 21 150 . 133 50 Terrain Rammed . | . . . . . . . . . Walls Destroyed . | . . . . . . . . . Machines Disabled . | . . . . . . . . . Actions | -11 -10 -10 -8 -8 -7 -7 -7 -7 --------- Run | Yrd Mat Sub Mat Sto Fac Low Low Zio Total 8064 | 67 165 1159 1483 1498 1267 1160 1148 117 Wait 841 | . 67 59 245 314 48 5 98 5 Move 6474 | 41 73 1024 1045 961 1088 1123 1024 95 Hop . | . . . . . . . . . Pick Up 105 | 10 5 11 31 26 16 4 1 1 Fast Attach 40 | . . 4 9 13 7 3 1 3 Attach 43 | 7 . 1 12 16 6 . 1 . Detach 3 | . . . . 2 1 . . . Swap 66 | . 5 8 22 12 14 1 2 2 Drop 119 | . . 19 36 28 22 7 2 5 Fire 316 | 9 15 33 83 113 61 . 2 . Melee 57 | . . . . 13 4 17 17 6 Ram . | . . . . . . . . . Kick . | . . . . . . . . . Crush . | . . . . . . . . . Escape Stasis . | . . . . . . . . . Rewire . | . . . . . . . . . Trap . | . . . . . . . . . Miscellaneous . | . . . . . . . . . Route ------- -11/Scrapyard -10/Materials -10/Subcaves -8/Materials (discovered 3 exits: *Fac x2 / *Sto) -8/Storage -7/Factory -7/Lower Caves -7/Lower Caves (discovered 2 exits: *Fac / *Zio) -7/Zion (discovered 1 exit: [*Pro]) History --------- Turn | Location | Event 28 | -11/Scrapyard | Discovered new exit (range 15) 92 | -11/Scrapyard | Entered Materials 197 | -10/Materials | Discovered new exit (range 9) 284 | -10/Materials | Entered Subcaves 303 | -10/Subcaves | Build established: Mutant 371 | -10/Subcaves | Shifting Twisted Machinery released Mak. Laser 379 | -10/Subcaves | Shifting Twisted Machinery released Battle Rifle 465 | -10/Subcaves | Learned location of Zion (-7) 465 | -10/Subcaves | Met a Zionite searching for "candidates" 503 | -10/Subcaves | Shifting Twisted Machinery released Battle Rifle 523 | -10/Subcaves | Shifting Twisted Machinery released Shrapnel Trap 631 | -10/Subcaves | Visited 4L-MR0's lab 643 | -10/Subcaves | Found Arachnoskeleton 739 | -10/Subcaves | Disturbed a concealed Subdweller 749 | -10/Subcaves | Core integrity fell below 50% 1171 | -10/Subcaves | A swath of the cavern ceiling suddenly collapsed 1192 | -10/Subcaves | Build established: Derelict-Mutant 1612 | -10/Subcaves | Core integrity fell below 20% 1661 | -10/Subcaves | Discovered new exit (range 14) 1685 | -10/Subcaves | Visited triangular shrine 1695 | -10/Subcaves | Found Prototype Device 1695 | -10/Subcaves | Identified V3-11A's Pendant 1700 | -10/Subcaves | Befriended Subdweller 1735 | -10/Subcaves | Entered Materials 1735 | -8/Materials | Accompanied by 1 ally 1735 | -8/Materials | Evolved 4 slots: Propulsion x1, Utility x2, Weapon x1 1797 | -8/Materials | Discovered new exit (range 13) 2300 | -8/Materials | Discovered new exit (range 15) 2311 | -8/Materials | Build established: Scavenger-Tank 2647 | -8/Materials | Build established: Skirmisher 2799 | -8/Materials | Identified exit to Storage 2982 | -8/Materials | Attached Arachnoskeleton, gained temporary slots: Propulsion x3 3274 | -8/Materials | Build established: Tank 3423 | -8/Materials | Discovered new exit (range 15) 3711 | -8/Materials | Entered Storage 4085 | -8/Storage | Discovered new exit (range 16) 4131 | -8/Storage | Core integrity fell below 50% 4313 | -8/Storage | Repaired Broken Nuclear Core 4593 | -8/Storage | Garrison activated, responded to threat 4651 | -8/Storage | Core integrity fell below 20% 4793 | -8/Storage | Destroyed 7 combat bots 4946 | -8/Storage | Assisted by bots powering up and referring to "LRC-V3" 5072 | -8/Storage | Garrison activated, responded to threat 5311 | -8/Storage | First assault squad dispatched 5350 | -8/Storage | Garrison activated, responded to threat 5360 | -8/Storage | Lost 3 allies 5625 | -8/Storage | Build established: Mutant 5781 | -8/Storage | Identified exit to Factory 5783 | -8/Storage | Entered Factory 5783 | -7/Factory | Evolved 2 slots: Utility x2 6292 | -7/Factory | Repaired Broken Imp. Sensor Array 6904 | -7/Factory | Found Prototype Launcher 6904 | -7/Factory | Identified Rocket Array 6908 | -7/Factory | Found Rocket Array 6985 | -7/Factory | Build established: Gunner 7383 | -7/Factory | First assault squad dispatched 7454 | -7/Factory | Garrison activated, responded to threat 7501 | -7/Factory | Destroyed 8 combat bots 7734 | -7/Factory | Discovered new exit (range 4) 7738 | -7/Factory | Identified exit to Lower Caves 7788 | -7/Factory | Entered Lower Caves 7994 | -7/Lower Caves | Build established: Mutant 8287 | -7/Lower Caves | Spotted B-75 Beast 8318 | -7/Lower Caves | Destroyed B-75 Beast 8326 | -7/Lower Caves | Learned Factory stockpile data 8348 | -7/Lower Caves | Discovered new exit (range 12) 8363 | -7/Lower Caves | Identified exit to Lower Caves 8415 | -7/Lower Caves | Learned Factory stockpile data 8507 | -7/Lower Caves | Encountered a Warlord checkpoint 8891 | -7/Lower Caves | Build established: Gladiator 9621 | -7/Lower Caves | System corruption reached 10% 9655 | -7/Lower Caves | Entered another Lower Caves area 9750 | -7/Lower Caves | Discovered new exit (range 12) 9824 | -7/Lower Caves | Identified exit to Factory 10083 | -7/Lower Caves | Discovered new exit (range 16) 10106 | -7/Lower Caves | Identified exit to Zion 10122 | -7/Lower Caves | Build established: Scavenger-Gladiator 11163 | -7/Lower Caves | Learned 4 Factory zone layouts 11459 | -7/Lower Caves | Entered Zion 11525 | -7/Zion | Attacked by Zionites 11622 | -7/Zion | 99-TNT came to Zion's defense 11634 | -7/Zion | Discovered new exit (range 15) 11637 | -7/Zion | Core integrity fell below 50% 11639 | -7/Zion | Core integrity fell below 20% 11640 | -7/Zion | Destroyed by 99-TNT with 99-TNT's Nukerbomber Last Messages --------------- 11578_ System corrupted: Substantial component data lost. 11598_ System corrupted: Matter fused (-6). 11621_ System corrupted: Component data lost. 11622_ 99-TNT: "Who are you to come after my hometown?" 11634_ Med. Treads destroyed. 11634_ EXIT=FOUND 11636_ System corrupted: Ripper fused. 11636_ Beamcaster destroyed. 11636_ Med. Treads destroyed. 11636_ Imp. Medium Treads destroyed. 11636_ Force Booster destroyed. 11637_ The unstable cave ceiling collapses. 11640_ Destroyed Lrn. Tractor Beam. 11640_ 99-TNT system corrupted by crushing effect. 11640_ Shock Maul destroyed. 11640_ Rnf. Deuterium Engine destroyed. 11640_ Ripper destroyed. Map ----- +----------------------------------------------------+ | ?????????????????????????????????????????????????? | | ?????????????????????????????????????????????????? | | ?????????????????????????????????????????????????? | | ?????????????????????????????????????????????????? | | ?????????????????????????????????????????????????? | | ?????????????????????????????????????????????????? | | ?????????????????????????????????????????????????? | | ?????????????????????????????????????????????????? | | ?????????????????????????????????????????????????? | | ?????????????????????????????????????????????????? | | ???????????????????????? < ?????????#######?????? | | ???????????????????????? ?????????#]"|"[#?????? | | ???????????????????????? ?????????#[/ |#?????? | | ???????????????????????? ?????????# " "]#?????? | | ???????????????????????? ?????????#"" ""#?????? | | ????????????????????????# ??????????# #??????? | | ????????????????????????# #?????????## ##?????? | | ????????????????????????# #?????????# ##????? | | ???????????????????###### #?????????# #????? | | ??????????????????## # #?????###?# #????? | | ??????????????????# # ##????# ### ##????? | | ??????????????????# ###?## ### #?????? | | ???????????????????# # ### #### ###???? | | ????????????????????# # ### ###?? | | ????????????????????# d #?? | | ????????????????????# @ ## ##?? | | ???????????????????## ##? #??? | | ?????????????????# ###??# #?? | | ?????????????????# ####?? #?? | | ?????????????????# #### ##? ##?? | | ?????????????????#????####### # #??#??? | | ?????????????????????# ######## ## #????? | | ???????????????????? ##?# #??? | | ???????????????????? ##??? #?? | | ???????????????????? ##### #????? #?? | | ????????????????????????????# ## #?????? #?? | | ????????????????????????????## ## ####???? #?? | | ?????????????????????????????## ### #????? #?? | | ??????????????????????????????##??# ## #??????#?? | | ??????????????????????????????????# ## #????????? | | ?????????????????????????????????## ## #????????? | | ????????????????????????????????## ## ##???????? | | ??????????????????????????????### ## ##??????? | | ?????????????????????????????## ##?????? | | ?????????????????????????????# ##????? | | ???????????????????????????# ## #????? | | ??????????????????????????# ##?## #????? | | ??????????????????????????# #????# ###### #????? | | ??????????????????????????###?????# #?????##????? | | ?????????????????????????????????## ##??????????? | +----------------------------------------------------+ Best States ------------- Heat Dissipation 67 Coolant Potential 50 Energy Generation 16 Energy Capacity 290 Matter Stores 300 Matter Capacity 300 Sight Range 16 Robot Scan Range 15 Terrain Scan Density 10 Armor Coverage 600 Resistance: TH 15 Evasion (%) 57 Targeting Accuracy 8 Melee Accuracy 6 Target Analysis 5 Core Analysis 6 Recoil Reduction 3 Force Boost 20 Item Schematics ----------------- None Robot Schematics ------------------ None Fabricated ------------ Nothing Repaired ---------- Nuclear Core | 37% | -8/Storage | Broken Imp. Sensor Array | 18% | -7/Factory | Broken Alien Tech Used ----------------- None Achievements -------------- None Challenges ------------ None Game ------ Seed LauncherRapidBlaster Manual? 0 Play Time 01:22:22 Cumulative 102.0 hours Start 2025.07.20 @ 21:29:34 End 2025.07.20 @ 22:53:15 Sessions 1 Manual Loads 0 Difficulty Rogue Special Mode None Game No. 79 Rogue 79 Adventurer 0 Explorer 0 Win Type - Total 0 Types 0/0/0/0/0/0/0/0/0/0 Lore% 60 Gallery% 49 Achievement% 44 Wizard Run 0 Options --------- Layout 1 ASCII 0 Keyboard 0 Movement Mouse Keybinds 0 Fullscreen 1 Font 24/Smallcaps Map View 50x35 Zoom Use 0% Tactical HUD 1 Map Filters NONE Filters NONE Steam 1 RUN: 05db82a9-1c01-442e-aee3-c20f9234ff9c